Cogmind - Beta 16.1 @@@ ROGUE MODE // 2026.03.23 @ 17:31:20 Player: Satori Result: Destroyed self via exploding Nuclear Reactor Performance ------------- Evolutions (3) 1500 Regions Visited (11) 2200 Robots Destroyed (154) 770 Value Destroyed (6686) 6686 Prototype IDs (34) 680 Alien Tech Used (0) 0 Bonus (3545) 3545 TOTAL SCORE: 15381 Bonus ------- High Alert Combat Kills 872 Follower Combat Kills 493 Entered Garrisons 400 Used RIF Installer 1500 Aligned with FarCom 300 Friendly Fire -20 Cogmind --------- Core Integrity 0/700 Matter 178/300 Energy 160/160 System Corruption 4% Temperature Cool (0) Movement Flying (40) Location -7/Factory Parts ------- > --- POWER (1) -------- Light Nuclear Core > --- PROPULSION (4) --- Xenon Bombardment Thruster > --- UTILITY (5) ------ Machine Analyzer Relay Coupler [NC] (16) Relay Coupler [Sentry] (15) > --- WEAPON (3) ------- (None) > --- INVENTORY (5) ---- Improved Deuterium Engine Relay Coupler [Swarmer] (25) Relay Coupler [Cutter] (25) Mini Grenade Launcher Great Maul Peak State ------------ > --- POWER ------------ Cooled Deuterium Engine > --- PROPULSION ------- Armored Treads Armored Treads Armored Treads Armored Treads > --- UTILITY ---------- High-capacity Storage Unit Improved Medium Armor Plating Relay Coupler [NC] Relay Coupler [Sentry] Relay Coupler [Specialist] > --- WEAPON ----------- Beamcaster Remote Datajack Impact Mace > --- INVENTORY -------- Matter Compressor IFF Parser Improved Medium Armor Plating Improved Medium Armor Plating Improved Medium Armor Plating Authchip [R/Combat] Relay Coupler [NC] Relay Coupler [Swarmer] Relay Coupler [Cutter] Relay Coupler [Grunt] Relay Coupler [Duelist] Relay Coupler [Behemoth] Improved Trap Extractor Drone Bay Enhanced Autogun Gauss Rifle Advanced Assault Cannon Mini Grenade Launcher Datajack Remote Datajack [Rating: 53] Favorites ----------- Power Fission Core Engine Cooled Ion Engine Power Core Fission Core Propulsion Armored Treads Treads Armored Treads Leg Aluminum Leg Wheel Armored Wheel Flight Unit Xenon Bombardment Thruster Utility High-capacity Storage Unit Device Seismic Detector Storage High-capacity Storage Unit Processor Improved Targeting Computer Hackware Relay Coupler [Grunt] Protection Reflective Plating Weapon Enhanced Autogun Energy Gun Improved Medium Laser Energy Cannon Advanced Beam Cannon Ballistic Gun Enhanced Autogun Launcher Mini Grenade Launcher Special Weapon Remote Datajack Impact Weapon Impact Mace Build | -11 -10 -10 -9 -9 -9 -8 -8 -8 -8 -8 -7 ------- Run | Yrd Mat Min Mat Min Exi Min Mat Gar Mat Gar Fac Slots Evolved 6 | . . . 2 . . . 2 . . . 2 Power . | . . . . . . . . . . . . Propulsion 2 | . . . 1 . . . . . . . 1 Utility 3 | . . . . . . . 2 . . . 1 Weapon 1 | . . . 1 . . . . . . . . Parts Attached 125 | 7 9 11 20 5 . 10 28 10 3 5 17 Power 13 | 1 1 1 1 1 . . 5 1 . . 2 Engine 11 | 1 1 1 1 1 . . 5 . . . 1 Core 2 | . . . . . . . . 1 . . 1 Reactor . | . . . . . . . . . . . . Propulsion 39 | 2 2 5 7 3 . 5 11 2 1 . 1 Treads 21 | 1 2 2 5 2 . . 6 2 1 . . Leg 5 | . . . . . . 3 2 . . . . Wheel 9 | 1 . 1 1 1 . 2 3 . . . . Hover . | . . . . . . . . . . . . Flight 4 | . . 2 1 . . . . . . . 1 Utility 39 | 2 1 2 4 1 . 1 8 4 2 3 11 Device 14 | 1 . 1 1 1 . 1 5 3 . . 1 Storage 6 | 1 1 1 3 . . . . . . . . Processor 2 | . . . . . . . 1 . . . 1 Hackware 7 | . . . . . . . . . . 3 4 Protection 10 | . . . . . . . 2 1 2 . 5 Artifact . | . . . . . . . . . . . . Weapon 34 | 2 5 3 8 . . 4 4 3 . 2 3 Energy Gun 8 | 2 1 . 3 . . . 1 . . 1 . Energy Cannon 3 | . . . . . . 3 . . . . . Ballistic Gun 14 | . 3 1 5 . . . 3 2 . . . Ballistic Cannon . | . . . . . . . . . . . . Launcher 4 | . . 2 . . . 1 . 1 . . . Special Weapon 3 | . 1 . . . . . . . . 1 1 Impact Weapon 2 | . . . . . . . . . . . 2 Slashing Weapon . | . . . . . . . . . . . . Piercing Weapon . | . . . . . . . . . . . . Special Melee Weapon . | . . . . . . . . . . . . Unidentified Prototypes 7 | . . . 3 1 . . 1 . . . 2 Parts Lost 43 | . 3 6 2 5 . 9 1 3 . 3 11 Power 4 | . 1 . . 1 . 1 . . . . 1 Propulsion 16 | . . 2 2 3 . 5 . . . 1 3 Utility 5 | . . 1 . . . . . 1 . 1 2 Weapon 18 | . 2 3 . 1 . 3 1 2 . 1 5 Highest Loss Streak 7 | . 1 6 1 5 . 6 1 3 . 1 7 To Critical Strikes . | . . . . . . . . . . . . Average Backups 16 | 3 8 12 16 18 18 16 17 18 20 19 14 Power . | . . . . . . . . . . . . Propulsion 4 | 1 4 5 6 6 6 5 7 7 6 2 . Utility 6 | . . 2 3 4 4 3 5 5 11 12 11 Weapon 3 | . 2 4 4 5 5 4 2 3 2 2 2 Tool/Special . | . . . . . . . . . . . . Unused Backups 49 | . 3 6 5 . 3 1 5 3 . 6 17 Power 3 | . . . 1 . . 1 . . . . 1 Propulsion 11 | . 2 2 . . . . 2 2 . 3 . Utility 25 | . 1 2 1 . 2 . 2 1 . 3 13 Weapon 9 | . . 2 3 . 1 . 1 . . . 2 Tool/Special 1 | . . . . . . . . . . . 1 Average Slot Usage (%) 93 | . 99 88 98 98 100 78 93 99 99 91 83 Engine 6 | . 13 11 10 10 11 6 7 5 . . 4 Core 2 | . . . . . . . . 3 9 9 1 Treads 20 | . 15 24 32 18 11 3 7 18 18 23 23 Wheel 6 | . 12 1 . 13 22 15 15 9 8 1 . Device 12 | . 14 11 11 11 11 10 17 18 17 13 1 Storage 9 | . 14 11 11 11 11 11 9 9 9 9 4 Hackware 3 | . . . . . . . . . . 5 19 Protection 3 | . . . . . . . 4 9 9 3 6 Energy Gun 6 | . 13 . 10 18 22 11 3 . . 1 5 Ballistic Gun 16 | . 9 25 21 14 11 1 12 26 27 17 2 Special Weapon 2 | . 4 . . . . . . . . 5 5 Peak Build Rating 53 | 7 12 12 19 26 24 24 41 41 40 42 53 Average Rating 28 | 4 7 10 16 19 23 19 32 39 39 39 41 On Entrance 21 | . 7 12 5 18 21 23 15 41 39 40 42 Avg Prop Armor Cover (%) 12 | 14 9 12 . 10 10 9 7 15 15 14 . Naked Turns 3 | . . 3 . . . . . . . . . Heaviest Build 85 | 14 32 32 57 58 58 59 85 71 68 68 72 Greatest Support 80 | 16 43 46 66 60 22 26 40 12 60 60 80 Greatest Overweight (x) 5 | . 1 3 1 5 2 4 5 5 5 5 1 Average Overweight (x) 1 | . . . . 1 2 1 2 4 4 1 . Largest Inventory Capacity 20 | 8 15 15 20 20 20 20 20 20 20 20 20 Average Capacity 17 | 5 9 12 18 20 20 20 20 20 20 20 15 Most Carried 20 | 6 15 15 20 20 20 19 20 20 20 20 20 Average Carried 16 | 4 8 12 16 18 19 18 19 19 20 19 14 Final Capacity 20 | 8 15 8 20 20 20 20 20 20 20 20 5 Final Carried 20 | 6 15 8 20 18 18 19 20 20 20 20 5 Class Distribution -------------------- 20% | Bothacker-Skirmisher 20% | Skirmisher 19% | Mutant 13% | Gunner 9% | Scavenger-Gunner 8% | Bothacker-Mutant 5% | Scavenger-Skirmisher Dominant Class ---------------- Mutant | -10/Materials Mutant | -10/Mines Scavenger-Gunner | -9/Materials Gunner | -9/Mines Gunner | -9/Exiles Skirmisher | -8/Mines Scavenger-Skirmisher | -8/Materials Skirmisher | -8/Garrison Bothacker-Skirmisher | -8/Materials Bothacker-Skirmisher | -8/Garrison Bothacker-Mutant | -7/Factory Resources | -11 -10 -10 -9 -9 -9 -8 -8 -8 -8 -8 -7 ----------- Run | Yrd Mat Min Mat Min Exi Min Mat Gar Mat Gar Fac Matter Collected 5208 | 270 40 454 724 123 . 186 900 1228 123 878 282 Remotely . | . . . . . . . . . . . . Salvage Created 5589 | 157 314 101 1140 191 . 442 1305 1158 88 523 170 Parts 331 | 11 21 . 84 3 . 17 66 76 9 34 10 Haulers Intercepted 7 | . . . 4 . . . 3 . . . . Recyclers Shooed 5 | 1 . . 1 . . 2 1 . . . . Parts Field Recycled . | . . . . . . . . . . . . Retrieved Matter . | . . . . . . . . . . . . Parts Self-Destructed . | . . . . . . . . . . . . Prevented . | . . . . . . . . . . . . Parts Restored . | . . . . . . . . . . . . Kills | -11 -10 -10 -9 -9 -9 -8 -8 -8 -8 -8 -7 ------- Run | Yrd Mat Min Mat Min Exi Min Mat Gar Mat Gar Fac Combat Hostiles Destroyed 135 | . 12 13 25 3 . 9 17 27 2 21 6 Melee 3 | . . . . . . . . 1 1 . 1 Guns 97 | . 9 5 25 3 . 5 13 26 1 9 1 Cannons 7 | . 2 . . . . 1 4 . . . . AOE 26 | . 1 8 . . . 3 . . . 11 3 Classes Destroyed 16 | 2 4 1 3 1 . 1 1 1 1 1 . Worker 6 | . 1 . . . . . 3 . . . 2 Builder 2 | . . . . . . 1 . . 1 . . Tunneler 3 | 3 . . . . . . . . . . . Hauler 7 | . . . 4 . . . 3 . . . . Recycler 3 | 1 . . . . . 1 1 . . . . Operator 4 | . 1 . 2 . . . 1 . . . . Watcher 7 | . . . 4 . . . 3 . . . . Swarmer 37 | . 6 . 10 . . . . 7 . 11 3 Grunt 55 | . 6 . 10 1 . 8 14 10 . 6 . Duelist 2 | . . . . 1 . 1 . . . . . Sentry 16 | . . . 5 . . . 2 8 1 . . Specialist 2 | . . . . . . . . 2 . . . Hunter 1 | . . . . . . . . . 1 . . Programmer 6 | . . . . . . . . . . 4 2 Heavy 2 | . . . . . . . 1 . . . 1 Assembled 13 | . . 13 . . . . . . . . . Best Kill Streak 10 | 4 3 8 6 1 . 3 8 5 1 10 3 Combat Bots Only 10 | . 3 8 5 1 . 3 5 5 1 10 3 Max Kills in Single Turn 4 | 1 1 2 2 1 . 2 2 2 1 4 3 Gunslinging 1 | . . . . . . 1 . . . . . Exploded 4 | . 1 2 . . . 1 . . . 4 3 Melee 1 | . . . . . . . . 1 1 . 1 Uniques/NPCs Destroyed 1 | . . . . 1 . . . . . . . YI-UF0 (-9/Mines) Combat | -11 -10 -10 -9 -9 -9 -8 -8 -8 -8 -8 -7 -------- Run | Yrd Mat Min Mat Min Exi Min Mat Gar Mat Gar Fac Hostile Shots Fired 749 | . 67 52 104 28 . 62 74 131 30 73 128 Missed 193 | . 25 14 34 6 . 13 9 34 6 23 29 Hits 556 | . 42 38 70 22 . 49 65 97 24 50 99 Melee 7 | . . 5 . . . 2 . . . . . Projectile 549 | . 42 33 70 22 . 47 65 97 24 50 99 AOE 24 | . . . . 24 . . . . . . . Critical Strikes 24 | . 2 1 . . . 5 5 4 1 2 4 Part Disruptions 2 | . . 2 . . . . . . . . . Damage Taken 9481 | . 481 738 726 810 . 909 1238 1294 294 801 2190 Core 1656 | . 88 80 100 117 . 116 148 155 23 114 715 Absorbed by Shields 50 | . . . . . . . . 17 . 13 20 Ignored by Resistances 80 | . . . . . . . 4 76 . . . Core Remaining (%) 42 | 100 . 32 . . . 16 . . . 20 . Volleys Fired 466 | 15 42 36 66 13 . 31 63 98 4 72 26 Largest 3 | 1 2 2 3 3 . 3 3 3 3 3 2 Hottest 201 | 40 140 46 141 135 . 180 201 75 75 125 100 Shots Fired 1073 | 15 78 52 193 38 . 53 162 276 14 160 32 Gun 942 | 15 68 39 193 38 . 24 122 274 14 136 19 Cannon 59 | . . . . . . 23 36 . . . . Launcher 34 | . . 13 . . . 6 4 2 . 8 1 Special 38 | . 10 . . . . . . . . 16 12 Kinetic 774 | . 21 39 141 24 . 2 120 274 14 133 6 Thermal 190 | 15 10 . 52 14 . 45 38 . . 3 13 Explosive 34 | . . 13 . . . 6 4 2 . 8 1 Electromagnetic 47 | . 47 . . . . . . . . . . Robot Hit Streak 28 | 7 10 3 28 6 . 7 14 23 4 10 9 Robot Miss Streak 6 | 2 6 5 6 2 . 4 3 4 2 2 5 Penetration Max . | . . . . . . . . . . . . Secondary Targets 11 | . . . 4 . . 1 3 3 . . . Max Gunslinging Chain 1 | . . . 1 . . 1 1 1 . . . Shots Hit Robots 610 | 13 42 22 111 25 . 25 107 135 7 79 44 Core Hits 269 | 5 21 29 45 7 . 22 50 46 4 32 8 Critical Kills 5 | . 1 . . . . . . 3 . . 1 Critical Parts Destroyed 3 | . . . . . . . . . . . 3 Critical Strikes 10 | . 2 . . . . 1 . 3 . . 4 Burn 1 | . . . . . . 1 . . . . . Destroy 4 | . 1 . . . . . . 3 . . . Corrupt 1 | . 1 . . . . . . . . . . Smash 4 | . . . . . . . . . . . 4 Melee Attacks 26 | . . . . . . . . . . . 26 Impact 26 | . . . . . . . . . . . 26 Slashing . | . . . . . . . . . . . . Piercing . | . . . . . . . . . . . . Sneak Attacks . | . . . . . . . . . . . . Combat Hostiles . | . . . . . . . . . . . . Follow-up Attacks . | . . . . . . . . . . . . Damage Inflicted 12243 | 144 657 778 1480 413 . 1013 1979 2336 144 2015 1284 Guns 8345 | 144 418 218 1480 405 . 233 1494 2336 118 1272 227 Cannons 735 | . . . . . . 265 470 . . . . Explosions 2310 | . 127 544 . . . 515 . . . 743 381 Melee 659 | . . . . . . . . . . . 659 Ramming 98 | . 16 16 . 8 . . 15 . 26 . 17 Kinetic 6881 | . 160 218 1039 221 . 12 1468 2336 118 1228 81 Thermal 2201 | 144 223 . 441 184 . 523 496 . . 44 146 Explosive 2146 | . . 544 . . . 478 . . . 743 381 Electromagnetic 258 | . 258 . . . . . . . . . . Impact 659 | . . . . . . . . . . . 659 Slashing . | . . . . . . . . . . . . Piercing . | . . . . . . . . . . . . Highest Corruption 6 | . . 6 . . . . . 1 3 4 4 Average Corruption 2 | . . 5 . . . . . 1 2 3 3 Corruption Purged . | . . . . . . . . . . . . Corruption Blocked . | . . . . . . . . . . . . Effects 99 | . . 6 . . . . . 11 6 47 29 Message Errors 23 | . . . . . . . . 5 1 7 10 Matter Fused 30 | . . 1 . . . . . 2 2 15 10 Heat Flow Errors 11 | . . . . . . . . 3 . 5 3 Energy Discharges 13 | . . 1 . . . . . . . 6 6 Parts Rejected 1 | . . 1 . . . . . . . . . Parts Fused 1 | . . 1 . . . . . . . . . Data Loss (minor) 5 | . . 1 . . . . . 1 1 2 . Data Loss (major) 3 | . . . . . . . . . . 3 . Misfires 9 | . . . . . . . . . 2 7 . Alerts 2 | . . . . . . . . . . 2 . Weapon Failures 1 | . . 1 . . . . . . . . . Overload Shots . | . . . . . . . . . . . . Overflow Damage 331 | . 27 11 . . . . 11 . . 51 231 Projectiles 11 | . . . . . . . 11 . . . . Explosions 114 | . 27 11 . . . . . . . 51 25 Melee 206 | . . . . . . . . . . . 206 Knockbacks 3 | . . . . . . . . . . . 3 Impact 3 | . . . . . . . . . . . 3 Kinetic . | . . . . . . . . . . . . Secondary . | . . . . . . . . . . . . Self-Inflicted Damage 532 | . 25 180 . . . 51 7 . . 38 231 Shots 14 | . 1 7 . . . 2 . . . 1 3 Rammed 18 | . 5 1 . 2 . . 1 . 7 . 2 Targets Rammed 22 | . 5 1 . 2 . . 1 1 8 . 4 Kicked . | . . . . . . . . . . . . Crushed 4 | . . . . . . . . 1 1 . 2 Highest Temperature 554 | . 160 71 237 72 . 554 349 216 25 263 206 Average Temperature 82 | . 47 39 64 34 . 236 96 28 22 63 67 Received Heat Transfer 2765 | . 231 200 180 12 . 495 558 522 27 177 363 Effects 12 | . . . . . . 10 1 . . 1 . Shutdowns 1 | . . . . . . 1 . . . . . Energy Bleed 1 | . . . . . . 1 . . . . . Interference 4 | . . . . . . 3 . . . 1 . Short Circuit 3 | . . . . . . 2 1 . . . . Damage (minor) 3 | . . . . . . 3 . . . . . Siege Activations . | . . . . . . . . . . . . Martial Activations . | . . . . . . . . . . . . Shielding Activations . | . . . . . . . . . . . . Robots Disrupted . | . . . . . . . . . . . . Combat Hostiles . | . . . . . . . . . . . . Robots Corrupted 1 | . . . . . . . . . . . 1 Combat Hostiles 1 | . . . . . . . . . . . 1 Parts Fried 4 | . 1 . . . . . . . . . 3 Impact Corruptions 8 | . . . . . . . . . . . 8 Robots Melted 1 | . . . . . . . . . . 1 . Combat Hostiles 1 | . . . . . . . . . . 1 . Parts Melted 9 | . . . 2 . . 1 1 . . 4 1 Heat Transferred 4425 | 325 350 . 999 407 . 1086 925 . . 74 259 Parts Sabotaged . | . . . . . . . . . . . . Parts Stolen . | . . . . . . . . . . . . Parts Stripped . | . . . . . . . . . . . . Power Chain Reactions 2 | . 2 . . . . . . . . . . Alert | -11 -10 -10 -9 -9 -9 -8 -8 -8 -8 -8 -7 ------- Run | Yrd Mat Min Mat Min Exi Min Mat Gar Mat Gar Fac Maximum Alert Level 5 | . . . 1 . . . 2 5 3 5 3 Low Security (%) 44 | 100 100 100 97 100 . 100 61 . . . . Level 1 3 | . . . 2 . . . 27 4 . . . Level 2 16 | . . . . . . . 11 24 7 10 66 Level 3 19 | . . . . . . . . 22 92 45 33 Level 4 13 | . . . . . . . . 44 . 32 . Level 5 2 | . . . . . . . . 3 . 10 . High Security . | . . . . . . . . . . . . Max Security . | . . . . . . . . . . . . Peak Influence 1730 | 10 178 56 205 81 . 120 453 1682 835 1730 907 Initial 907 | . . 12 . 71 . . . 286 819 444 907 Average 519 | 1 84 6 106 21 . 55 161 996 762 1092 629 Influence Increases 6064 | 20 441 130 707 139 . 280 720 1466 81 1356 724 Destroy 0b10 Robot/C 2800 | . 240 60 500 100 . 180 340 600 40 540 200 Destroy 0b10 Robot/NC 165 | 20 10 . 50 . . 10 55 . 5 . 15 Destroy Leader 458 | . 50 10 136 20 . 30 92 20 20 20 60 Allied During Kill 77 | . . 9 . 4 . . . 23 . 28 13 Successful Hack 112 | . 9 . 18 . . . 11 34 16 . 24 Disable Machine 195 | . 30 . . 15 . 30 75 . . . 45 Anti-Garrison Action 1350 | . . . . . . . . 700 . 650 . Destroy Structure 307 | . 12 51 3 . . 30 12 74 . 73 52 Lose Combat Pursuer 600 | . 90 . . . . . 135 15 . 45 315 Influence Decreases 5373 | 20 408 163 523 272 51 280 279 225 1079 310 1763 Entered New Map 2266 | . . 21 . 113 51 . . 155 863 240 823 Time Decay 2395 | 20 378 87 503 159 . 190 272 . 206 . 580 Lost Part 352 | . 30 35 20 . . 90 7 30 . 30 110 Lost Ally 210 | . . 20 . . . . . 40 10 40 100 Purge Threat 150 | . . . . . . . . . . . 150 Squads Dispatched 22 | . 3 . 4 . . . 5 . 1 . 9 Investigation 2 | . . . 2 . . . . . . . . Extermination 2 | . . . . . . . . . . . 2 Reinforcement 16 | . 3 . 2 . . . 4 . . . 7 Assault 1 | . . . . . . . . . 1 . . Garrison 1 | . . . . . . . 1 . . . . Intercept . | . . . . . . . . . . . . Searches Triggered . | . . . . . . . . . . . . Construction Impeded . | . . . . . . . . . . . . Haulers Reinforced . | . . . . . . . . . . . . Active Scanning Responses . | . . . . . . . . . . . . Cargo Convoy Interrupts 1 | . . . . . . . . . . . 1 Stealth | -11 -10 -10 -9 -9 -9 -8 -8 -8 -8 -8 -7 --------- Run | Yrd Mat Min Mat Min Exi Min Mat Gar Mat Gar Fac Distress Signals 13 | . 3 . 2 . . . 4 . 1 . 3 Communications Jammed 30 | . . . . . . . . . . . 30 Distress Signals 30 | . . . . . . . . . . . 30 Times Spotted 233 | . 27 25 35 3 . 8 26 28 8 31 42 Peak Tracking Total 13 | . 5 13 7 2 . 3 9 5 4 9 5 Tactical Retreats 15 | . 3 1 . . . . 4 1 . 2 4 Traps | -11 -10 -10 -9 -9 -9 -8 -8 -8 -8 -8 -7 ------- Run | Yrd Mat Min Mat Min Exi Min Mat Gar Mat Gar Fac Traps Triggered 29 | . 2 . 2 . . . . 8 1 12 4 Indirectly . | . . . . . . . . . . . . Trap Hack Attempts . | . . . . . . . . . . . . Triggered . | . . . . . . . . . . . . Disarmed . | . . . . . . . . . . . . Reprogrammed . | . . . . . . . . . . . . Reused . | . . . . . . . . . . . . Traps Extracted . | . . . . . . . . . . . . Installed . | . . . . . . . . . . . . Triggered . | . . . . . . . . . . . . Machines | -11 -10 -10 -9 -9 -9 -8 -8 -8 -8 -8 -7 ---------- Run | Yrd Mat Min Mat Min Exi Min Mat Gar Mat Gar Fac Machines Disabled 28 | . 2 . . 1 . 2 5 6 . 9 3 Max in Single Turn 2 | . 1 . . . . 1 2 1 . 1 1 Garrison Relay 8 | . . . . . . . . 4 . 4 . Phase Generator 2 | . . . . . . . . 1 . 1 . Machines Repaired . | . . . . . . . . . . . . Machines Dismantled . | . . . . . . . . . . . . Machines Sabotaged . | . . . . . . . . . . . . Overloaded Fab Kills . | . . . . . . . . . . . . Hacking | -11 -10 -10 -9 -9 -9 -8 -8 -8 -8 -8 -7 --------- Run | Yrd Mat Min Mat Min Exi Min Mat Gar Mat Gar Fac Machines Accessed 35 | . 4 . 8 . 2 . 4 3 2 4 8 Terminals 25 | . 4 . 6 . . . 3 3 1 4 4 Fabricators . | . . . . . . . . . . . . Repair Stations 3 | . . . . . . . . . . . 3 Recycling Units 1 | . . . 1 . . . . . . . . Scanalyzers 2 | . . . 1 . . . . . . . 1 Garrison Access 2 | . . . . . . . 1 . 1 . . Total Hacks 82 | . 8 . 27 . 5 . 9 6 3 9 15 Successful 39 | . 5 . 11 . 5 . 7 3 2 . 6 Failed 43 | . 3 . 16 . . . 2 3 1 9 9 Catastrophic 8 | . 2 . 1 . . . . . . 1 4 Database Lockouts . | . . . . . . . . . . . . Manual 43 | . 4 . 20 . 1 . 8 1 2 1 6 Terminals 61 | . 8 . 20 . . . 8 6 2 9 8 Fabricators . | . . . . . . . . . . . . Repair Stations 5 | . . . . . . . . . . . 5 Recycling Units 5 | . . . 5 . . . . . . . . Scanalyzers 4 | . . . 2 . . . . . . . 2 Garrison Access 2 | . . . . . . . 1 . 1 . . Terminal Hacks 10 | . 3 . . . 5 . . 2 . . . Record 4 | . . . . . 4 . . . . . . Prototype ID Bank 2 | . 2 . . . . . . . . . . Open Door 1 | . . . . . . . . 1 . . . Zone Layout 1 | . 1 . . . . . . . . . . Patrol Navigation 1 | . . . . . . . . 1 . . . Proto ID Catalog 1 | . . . . . 1 . . . . . . Fabricator Hacks . | . . . . . . . . . . . . Repair Station Hacks 2 | . . . . . . . . . . . 2 Scan Component 1 | . . . . . . . . . . . 1 Repair 1 | . . . . . . . . . . . 1 Recycling Unit Hacks 3 | . . . 3 . . . . . . . . Process 1 | . . . 1 . . . . . . . . Report Inventory 1 | . . . 1 . . . . . . . . Retrieve Matter 1 | . . . 1 . . . . . . . . Scanalyzer 3 | . . . 1 . . . . . . . 2 Insert Component 2 | . . . . . . . . . . . 2 Retrieve Study 1 | . . . 1 . . . . . . . . Garrison Access Hacks 2 | . . . . . . . 1 . 1 . . Unlock Access 2 | . . . . . . . 1 . 1 . . Unauthorized Hacks 19 | . 2 . 7 . . . 6 1 1 . 2 Terminals 19 | . 2 . 7 . . . 6 1 1 . 2 Track 2 | . . . 1 . . . 1 . . . . Assimilate 1 | . . . . . . . . . 1 . . Botnet 7 | . 2 . . . . . 2 1 . . 2 Operators 1 | . . . 1 . . . . . . . . Skim 8 | . . . 5 . . . 3 . . . . Fabricators . | . . . . . . . . . . . . Repair Stations . | . . . . . . . . . . . . Recycling Units . | . . . . . . . . . . . . Scanalyzers . | . . . . . . . . . . . . Garrison Access . | . . . . . . . . . . . . Data Cores Recovered 1 | . . . . . . . . . . . 1 Used 1 | . . . . . . . . . . . 1 Hacking Detections 30 | . 4 . 7 . . . 3 3 2 4 7 Full Trace Events 3 | . . . . . . . . 1 . 2 . Feedback Events 1 | . . . . . . . . 1 . . . Corruption 1 | . . . . . . . . 1 . . . Feedback Blocked . | . . . . . . . . . . . . Robot Schematics Acquired . | . . . . . . . . . . . . Robots Built . | . . . . . . . . . . . . Authchips . | . . . . . . . . . . . . Time . | . . . . . . . . . . . . Total Robot Build Rating . | . . . . . . . . . . . . Part Schematics Acquired . | . . . . . . . . . . . . Parts Built . | . . . . . . . . . . . . Authchips . | . . . . . . . . . . . . Time . | . . . . . . . . . . . . Total Part Build Rating . | . . . . . . . . . . . . Part Studies Acquired 1 | . . . 1 . . . . . . . . Parts Repaired . | . . . . . . . . . . . . Time 26 | . . . . . . . . . . . 26 Parts Recycled . | . . . . . . . . . . . . Recycled Matter 124 | . . . 124 . . . . . . . . Retrieved Matter 159 | . . . 159 . . . . . . . . Retrieved Components . | . . . . . . . . . . . . Parts Scanalyzed . | . . . . . . . . . . . . Part Schematics Acquired . | . . . . . . . . . . . . Parts Damaged . | . . . . . . . . . . . . Bothacking | -11 -10 -10 -9 -9 -9 -8 -8 -8 -8 -8 -7 ------------ Run | Yrd Mat Min Mat Min Exi Min Mat Gar Mat Gar Fac Used RIF Installer 3 | . . . . . . . . 2 . 1 . Hotswap 1 | . . . . . . . . 1 . . . Signal Jammer 1 | . . . . . . . . . . 1 . Robots Hacked 17 | . . . . . . . . . . 7 10 Non-combat 3 | . . . . . . . . . . . 3 Combat 14 | . . . . . . . . . . 7 7 Robot Hacks Applied 18 | . . . . . . . . . . 8 10 parse_system 2 | . . . . . . . . . . 1 1 purge_threat 1 | . . . . . . . . . . . 1 map_route 2 | . . . . . . . . . . . 2 spike_heat 2 | . . . . . . . . . . 1 1 amplify_resonance 1 | . . . . . . . . . . . 1 overwrite_iff 1 | . . . . . . . . . . 1 . streamctrl_high 1 | . . . . . . . . . . . 1 formatsys_high 8 | . . . . . . . . . . 5 3 Relay Couplers Released 28 | . . . . . . . . 12 . 16 . Machine Destruction 28 | . . . . . . . . 12 . 16 . Attached 7 | . . . . . . . . . . 3 4 Fabnet Peak Effective % . | . . . . . . . . . . . . Robots Rewired . | . . . . . . . . . . . . Allies Hacked . | . . . . . . . . . . . . Hacks Repelled . | . . . . . . . . . . . . Allies | -11 -10 -10 -9 -9 -9 -8 -8 -8 -8 -8 -7 -------- Run | Yrd Mat Min Mat Min Exi Min Mat Gar Mat Gar Fac Total Allies 17 | . . 3 . 1 . . . 2 1 6 4 Largest Group 4 | . . 3 . 1 . . . 2 1 4 3 Highest-Rated Group 80 | . . 40 . 31 . . . 56 26 63 80 Highest-Rated Ally 40 | . . 16 . 31 . . . 31 26 16 40 Total Orders 3 | . . . . . . . . . . 2 1 STAY 2 | . . . . . . . . . . 1 1 FOLLOW 1 | . . . . . . . . . . 1 . Ally Attacks 117 | . . 26 . 4 . . . 17 . 31 39 Total Damage 1902 | . . 130 . 61 . . . 397 . 485 829 Kills 20 | . . 3 . 3 . . . 3 . 6 5 Allies Corrupted . | . . . . . . . . . . . . Allies Melted . | . . . . . . . . . . . . Intel | -11 -10 -10 -9 -9 -9 -8 -8 -8 -8 -8 -7 ------- Run | Yrd Mat Min Mat Min Exi Min Mat Gar Mat Gar Fac Active Infowar (turns) 8537 | 11 1057 650 1751 899 473 146 253 1410 432 1144 311 Sensors 272 | . . . . 19 . . 253 . . . . Seismic 8100 | 11 1057 650 1751 880 473 146 . 1410 432 1144 146 Machine Analysis 165 | . . . . . . . . . . . 165 Robot Analysis Total . | . . . . . . . . . . . . Derelict Logs Recovered 3 | . . 2 . 1 . . . . . . . Drone Launches . | . . . . . . . . . . . . Drone Recoveries . | . . . . . . . . . . . . Exploration | -11 -10 -10 -9 -9 -9 -8 -8 -8 -8 -8 -7 ------------- Run | Yrd Mat Min Mat Min Exi Min Mat Gar Mat Gar Fac Turns Passed 13164 | 126 1057 804 1751 899 473 436 922 2337 434 2133 1792 Spaces Moved 7489 | 80 651 521 897 643 407 247 405 1186 217 941 1294 Core 221 | 1 . 31 . . . . . . . . 189 Treads 3193 | . 263 371 863 157 . . 5 . 1 781 752 Legs 38 | . . . . . . 38 . . . . . Wheels 3548 | 79 388 17 . 486 407 209 400 1186 216 160 . Hover . | . . . . . . . . . . . . Flight 489 | . . 102 34 . . . . . . . 353 Fastest Speed 37 | 50 100 37 37 115 115 105 105 150 165 165 40 Average Speed 144 | 99 130 127 155 130 115 127 131 164 165 197 118 Slowest Speed 260 | 100 240 160 240 240 115 260 245 165 250 250 250 Overloaded Moves . | . . . . . . . . . . . . Propulsion Burnouts . | . . . . . . . . . . . . Robots Hopped . | . . . . . . . . . . . . Potential Cave-ins . | . . . . . . . . . . . . Cave-ins Triggered . | . . . . . . . . . . . . Exploration Rate (%) 60 | 4 79 97 58 92 87 50 31 92 17 82 32 Regions Visited 11 Branch Regions 4 Pre-discovered Areas 4 | . . . 3 . 1 . . . . . . Known Exits Taken 4 | . . . 1 . . 1 1 . 1 . . Unknown Exits Taken 5 | 1 1 1 . 1 1 . . . . . . Scrap Searched 2 | . . 1 . 1 . . . . . . . Spaces Dug 15 | . . 2 . . . 5 8 . . . . Terrain Destroyed 418 | . 12 81 . . . 44 43 74 . 113 51 Melee . | . . . . . . . . . . . . Projectile 5 | . 4 . . . . 1 . . . . . AOE 413 | . 8 81 . . . 43 43 74 . 113 51 Terrain Rammed . | . . . . . . . . . . . . Walls Destroyed . | . . . . . . . . . . . . Machines Disabled . | . . . . . . . . . . . . Actions | -11 -10 -10 -9 -9 -9 -8 -8 -8 -8 -8 -7 --------- Run | Yrd Mat Min Mat Min Exi Min Mat Gar Mat Gar Fac Total 9125 | 109 758 613 1136 673 414 316 722 1473 275 1151 1485 Wait 552 | . 31 29 98 4 . 15 159 100 38 45 33 Move 7480 | 79 650 520 896 642 406 246 405 1185 217 940 1294 Hop . | . . . . . . . . . . . . Pick Up 118 | 8 13 4 24 3 3 5 21 12 . 15 10 Fast Attach 59 | 5 6 6 8 1 . 3 12 5 1 2 10 Attach 49 | 2 2 5 7 4 . 6 7 4 . 6 6 Detach 25 | . 1 5 2 . . 3 3 1 . 6 4 Swap 69 | . 4 3 14 3 . 6 18 5 4 7 5 Drop 106 | . 4 4 21 1 5 1 33 14 3 11 9 Fire 466 | 15 42 36 66 13 . 31 63 98 4 72 26 Melee 26 | . . . . . . . . . . . 26 Ram 3 | . . . . . . . 1 . . . 2 Kick . | . . . . . . . . . . . . Crush 19 | . 5 1 . 2 . . . 1 8 . 2 Escape Stasis 152 | . . . . . . . . 47 . 47 58 Rewire 1 | . . . . . . . . 1 . . . Trap . | . . . . . . . . . . . . Miscellaneous . | . . . . . . . . . . . . Route ------- -11/Scrapyard -10/Materials (discovered 4 exits: *Mat x2 / [*Min] / [*Sub]) -10/Mines (discovered 2 exits: *Mat x2) -9/Materials (discovered 5 exits: *Mat x3 / *Min x2) -9/Mines (discovered 4 exits: *Mat x2 / *Exi / [*Zio]) -9/Exiles -8/Mines -8/Materials (discovered 4 exits: *Fac x3 / Gar) -8/Garrison (discovered 4 exits: *Mat x4) -8/Materials -8/Garrison (discovered 3 exits: *Fac x3) -7/Factory (discovered 2 exits: [*Fac] / [*Low]) History --------- Turn | Location | Event 41 | -11/Scrapyard | Discovered new exit (range 15) 127 | -11/Scrapyard | Entered Materials 239 | -10/Materials | Discovered new exit (range 8) 291 | -10/Materials | Discovered new exit (range 12) 312 | -10/Materials | Build established: Mutant 468 | -10/Materials | Discovered new exit (range 16) 816 | -10/Materials | Discovered new exit (range 12) 1184 | -10/Materials | Entered Mines 1351 | -10/Mines | Assisted by bots powering up and referring to "LRC-V3" 1540 | -10/Mines | Learned location of 1 exit from Materials 1562 | -10/Mines | Learned Materials terminal intel 1629 | -10/Mines | Discovered new exit (range 5) 1730 | -10/Mines | Assembled infested the area 1735 | -10/Mines | Assisted by a Guerilla fighting off Assembled 1789 | -10/Mines | Lost 3 allies 1808 | -10/Mines | Core integrity fell below 50% 1814 | -10/Mines | Joined a pair of Derelicts in attacking an 0b10 outpost 1827 | -10/Mines | Destroyed 8 combat bots 1862 | -10/Mines | Lost 6 parts (2n1u3w) 1971 | -10/Mines | Discovered new exit (range 16) 1988 | -10/Mines | Entered Materials 1988 | -9/Materials | Evolved 2 slots: Propulsion x1, Weapon x1 1989 | -9/Materials | Identified exit to Mines 1990 | -9/Materials | Loaded intel: 12 terminal locations 2303 | -9/Materials | Discovered new exit (range 4) 2681 | -9/Materials | Build established: Scavenger-Gunner 2684 | -9/Materials | Discovered exit to Mines (range 7) 2695 | -9/Materials | Identified exit to Materials 2764 | -9/Materials | Learned Storage terminal intel 2798 | -9/Materials | Learned 4 Materials zone layouts 2799 | -9/Materials | Learned Storage emergency access door positions 2800 | -9/Materials | Learned location of Storage (-7) 2817 | -9/Materials | Learned location of 1 exit from Storage 2839 | -9/Materials | Learned Storage trap positions 2869 | -9/Materials | Learned location of 3 exits from Materials 3234 | -9/Materials | Discovered exit to Materials (range 9) 3739 | -9/Materials | Entered Mines 3804 | -9/Mines | Build established: Gunner 3910 | -9/Mines | Found a damaged Exp. Sensor Array with a note attached 3914 | -9/Mines | Found Prototype Device 3968 | -9/Mines | Identified Exp. Sensor Array 4008 | -9/Mines | Core integrity fell below 50% 4022 | -9/Mines | Destroyed YI-UF0 4052 | -9/Mines | Lost 5 parts (1p3n1w) 4208 | -9/Mines | Discovered exit to Materials (range 8) 4243 | -9/Mines | Received a Rocket Launcher from a helpful Derelict 4265 | -9/Mines | Received a Mining Laser from a helpful Derelict 4321 | -9/Mines | Deemed a non-threat by the Exiles lab entrance 4321 | -9/Mines | Discovered new exit (range 5) 4436 | -9/Mines | A Derelict revealed a hidden shortcut to a safe place 4476 | -9/Mines | Discovered exit to Materials (range 9) 4505 | -9/Mines | Learned Materials interactive machine intel 4638 | -9/Mines | Entered Exiles 4687 | -9/Exiles | Met 8R-AWN 4705 | -9/Exiles | Met EX-HEX 4737 | -9/Exiles | Met EX-BIN 4751 | -9/Exiles | Aligned with FarCom system 4752 | -9/Exiles | Given EX-Vault access code 4781 | -9/Exiles | Opened EX-Vault 4789 | -9/Exiles | Found Lightpack 2.0 4813 | -9/Exiles | Warned to stay clear of 0b10 Research branches 4850 | -9/Exiles | Met EX-DEC 4858 | -9/Exiles | Learned location of Zion (-7) 4920 | -9/Exiles | Visited The Gauntlet 5099 | -9/Exiles | Discovered new exit (range 10) 5111 | -9/Exiles | Left Exiles lab with Lightpack 2.0 5111 | -9/Exiles | Entered Mines 5358 | -8/Mines | Core integrity fell below 20% 5390 | -8/Mines | Lost 6 parts (1p3n2w) 5507 | -8/Mines | Discovered exit to Materials (range 8) 5547 | -8/Mines | Entered Materials 5547 | -8/Materials | Evolved 2 slots: Utility x2 5548 | -8/Materials | Identified exit to Factory 5550 | -8/Materials | Loaded intel: 19 interactive machine locations 5871 | -8/Materials | Build established: Scavenger-Skirmisher 6408 | -8/Materials | Garrison activated, responded to threat 6469 | -8/Materials | Identified exit to Garrison 6469 | -8/Materials | Entered Garrison 6515 | -8/Garrison | Triggered checkpoint 6566 | -8/Garrison | Garrison Relay disabled 6717 | -8/Garrison | Build established: Skirmisher 6849 | -8/Garrison | Triggered checkpoint 6976 | -8/Garrison | Triggered checkpoint 7027 | -8/Garrison | Discovered new exit (range 12) 7093 | -8/Garrison | Triggered checkpoint 7198 | -8/Garrison | Garrison Relay disabled 7268 | -8/Garrison | Rescued a captive Derelict 7269 | -8/Garrison | Rescued a captive Derelict 7443 | -8/Garrison | Triggered checkpoint 7535 | -8/Garrison | Triggered checkpoint 7635 | -8/Garrison | Triggered checkpoint 7682 | -8/Garrison | Garrison Relay disabled 7704 | -8/Garrison | Phase Generator disabled 7769 | -8/Garrison | Discovered new exit (range 10) 7923 | -8/Garrison | Lost 3 parts (1u2w) 8053 | -8/Garrison | Discovered new exit (range 3) 8303 | -8/Garrison | Triggered checkpoint 8312 | -8/Garrison | Garrison Relay disabled 8344 | -8/Garrison | Installed Relay Interface Framework 8431 | -8/Garrison | Discovered new exit (range 12) 8495 | -8/Garrison | Core integrity fell below 50% 8598 | -8/Garrison | Expanded RIF knowledge: Hotswap 8806 | -8/Garrison | Entered Materials 9059 | -8/Materials | Build established: Bothacker-Skirmisher 9206 | -8/Materials | First assault squad dispatched 9240 | -8/Materials | Identified exit to Garrison 9240 | -8/Materials | Entered Garrison 9270 | -8/Garrison | Triggered checkpoint 9288 | -8/Garrison | Garrison Relay disabled 9432 | -8/Garrison | Triggered checkpoint 9481 | -8/Garrison | Destroyed 10 combat bots 9750 | -8/Garrison | Discovered exit to Factory (range 15) 10044 | -8/Garrison | Triggered checkpoint 10072 | -8/Garrison | Garrison Relay disabled 10086 | -8/Garrison | Garrison Relay disabled 10570 | -8/Garrison | Triggered checkpoint 10646 | -8/Garrison | Phase Generator disabled 10730 | -8/Garrison | Triggered checkpoint 11042 | -8/Garrison | Discovered exit to Factory (range 8) 11123 | -8/Garrison | Expanded RIF knowledge: Signal Jamming 11140 | -8/Garrison | Garrison Relay disabled 11333 | -8/Garrison | Discovered exit to Factory (range 14) 11373 | -8/Garrison | Entered Factory 11373 | -7/Factory | Accompanied by 3 allies 11373 | -7/Factory | Evolved 2 slots: Propulsion x1, Utility x1 11605 | -7/Factory | P-60 Hacker assimilated allied Trooper 3b 11667 | -7/Factory | Discovered new exit (range 19) 11997 | -7/Factory | Discovered new exit (range 12) 12199 | -7/Factory | Build established: Bothacker-Mutant 12259 | -7/Factory | Cargo convoy interrupted 12857 | -7/Factory | Core integrity fell below 50% 12867 | -7/Factory | Core integrity fell below 20% 12897 | -7/Factory | Lost 7 parts (1p1n2u3w) 13134 | -7/Factory | Build established: Mutant 13165 | -7/Factory | Destroyed self via exploding Nuclear Reactor Last Messages --------------- 13150_ Field strength at 70. 13151_ Field strength at 64. 13152_ Field strength at 58. 13153_ Field strength at 52. 13154_ Field strength at 46. 13155_ Field strength at 40. 13156_ Field strength at 34. 13157_ OUWK9QC5NGELVO|Q/AWR1LBO8G2W 13157_ Field strength at 28. 13158_ Field strength at 22. 13159_ C-30 ARC bursts open, deploying its payload. 13159_ S-27 Virus unfolds itself. 13159_ Field strength at 16. 13161_ S-27 Virus destroyed. 13161_ Stasis field depleted. 13161_ S-27 Virus destroyed. 13163_ K-01 Serf collects debris. 13165_ Nuclear Reactor explodes. 13165_ Destroyed Wheel. 13165_ Destroyed Lgt. Ion Engine. Map ----- +----------------------------------------------------+ | ?????????????????????????????????????????????????? | | ?????????????????????????????????????????????????? | | ?????????????????????????????????????????????????? | | ?????????????????????????????????????????????????? | | ??????????????????????????????????""""""?????????? | | ??????????????????????????????????""""""?????????? | | ??????????????????????????????????""""""?????????? | | ????????????????????""""?""""?????""""""?????????? | | ????????????????????""""?""""????????????????????? | | ????????????????????""""?""""?????""""""?????????? | | ????????????????????""""?""""?????""""""?????????? | | ????????????????????""""?"""" ????""""""?????????? | | ????????????????????""""?"""" #??""""""?????????? | | ?????????????????????????? #?????????????????? | | ?????????????????????????? +?????????????????? | | ?????????????????????????? #?????????????????? | | ?????????????????????????# #?????????????????? | | ?????????????????????????# #?????????????????? | | ?????????????????????????# #?????????????????? | | ?????????????????????????# #?????????????????? | | ?????????????????????????# #?????????????????? | | ?????????????????????????# #?????????????????? | | ?????????????????######### #?????????????????? | | ???????????#?????# # #?????????????????? | | ???????????# # k ###########+###### | | #######????# # """ @ % | | = ????# # """ | | ??#?# # """ [ """ """ !! | | #?# # [ """ """ !! | | ""?? #?# # """ """ """ ! | | """" ### # """ | | """" ## # """ # """ """ | | [ """" ##T + # """ """ | | ### # = # """ """ ## | | ####+####### ##+###### "" "" ! #? | | ## #????# ""F"" ![ #? | | ## #????# """ [ #? | | "" ######+####+##???##########+########### #? | | "" # [ ! #???????# #?### ## | | "" # #???????# """""" #?# | | "" # """" """" #???????# """""" ??# | | "" # """" """" #???????# """""" #?# " | | "" # ??"" ""?? #???????# """"""???# | | # ???" "??? #???????# """"""???# | | #??? ????#???????# """"""???## # | | #????? ??????????????# """"""????# # | | ### #????????????????????# """"""????# # | | ## #????????????????????# """"""????# # | | ## #????????????????????#! ????????# # | | ## #????????????????????# ????????# | +----------------------------------------------------+ Best States ------------- Heat Dissipation 59 Energy Generation 18 Energy Capacity 310 Matter Stores 300 Matter Capacity 300 Sight Range 16 Robot Scan Range 20 Terrain Scan Density 10 Armor Coverage 600 Resistance: TH 10 Evasion (%) 62 Targeting Accuracy 6 Recoil Reduction 4 Relay Coupler Types 3 Relay Coupler Value 54 Authchip Count 1 Item Schematics ----------------- None Robot Schematics ------------------ None Fabricated ------------ Nothing Repaired ---------- Nothing Studied --------- Flight Unit | -9/Materials | Hacked Alien Tech Used ----------------- None Achievements -------------- None Challenges ------------ None Game ------ Seed CooledNullMonowheel Manual? 0 Play Time 01:49:17 Cumulative 367.1 hours Start 2026.03.23 @ 15:39:06 End 2026.03.23 @ 17:31:20 Sessions 1 Manual Loads 0 Difficulty Rogue Special Mode None Game No. 126 Rogue 125 Adventurer 1 Explorer 0 Win Type - Total 14 Types 12/0/2/0/0/0/0/0/0/0 Lore% 79 Gallery% 73 Achievement% 57 Wizard Run 0 Options --------- Layout 0 ASCII 1 Keyboard 1 Movement Vi Keybinds 0 Fullscreen 1 Font 36/Terminus++ Map View 76x50 Zoom Use 0% Tactical HUD 1 Map Filters NONE Filters NONE Steam 0 RUN: 522632e6-10e1-48e7-8677-d2d1458ddfcd